fUST/lending_fUST_20250310
["ID","MTS","AMOUNT","RATE_DAILY","PERIOD"]
[355817075,1741608664610,-676.77,0.00055068,120]
[355817076,1741608664621,-500.0,0.00055068,120]
[355817077,1741608664633,-788.58,0.00055068,120]
[355817078,1741608664644,-3576.36,0.00055068,120]
[355817079,1741608664656,-551.56,0.00055068,120]
[355817080,1741608664667,-500.0,0.00055068,120]
[355817081,1741608664679,-2519.57,0.00055068,120]
[355817082,1741608664692,-500.0,0.00055068,120]
[355817083,1741608664703,-9999.0,0.00055068,2]
[355817084,1741608664716,-206.02,0.000551,30]
[355817085,1741608664733,-4793.36,0.000551,30]
[355817086,1741608664745,-850.0,0.00055108,2]
[355817087,1741608664757,-661.05,0.00055342,120]
[355817088,1741608664768,-500.0,0.00055342,120]
[355817089,1741608664781,-1789.85,0.00055342,120]
[355817090,1741608664793,-520.06632243,0.00055342,120]
[355817091,1741608664804,-500.0,0.00055342,120]
[355817092,1741608664815,-1401.64,0.00055342,120]
[355817093,1741608664827,-500.0,0.00055342,120]
[355817094,1741608664839,-775.39,0.00055342,120]
[355817095,1741608664852,-500.0,0.00055342,120]
[355817096,1741608664867,-500.0,0.00055342,2]
[355817097,1741608664878,-259.93508536,0.00055342,120]
[355817098,1741608664889,-25655.27,0.00055342,7]
[355817099,1741608664902,-704.34,0.00055342,120]
[355817100,1741608664914,-1411.84,0.00055342,120]
[355817101,1741608664924,-519.72,0.00055342,120]
[355817102,1741608664938,-1148.55,0.00055342,120]
[355817103,1741608664950,-500.0,0.00055342,120]
[355817104,1741608664960,-967.69,0.00055342,60]
[355817105,1741608664971,-533.36,0.00055342,120]
[355817106,1741608664985,-502.19,0.00055342,120]
[355817107,1741608664997,-666.59,0.00055342,120]
[355817108,1741608665007,-571.19,0.00055342,120]
[355817109,1741608665018,-1286.18,0.00055342,120]
[355817110,1741608665029,-1736.39,0.00055342,120]
[355817111,1741608665039,-500.0,0.00055342,120]
[355817112,1741608665050,-500.0,0.00055342,7]
[355817113,1741608665061,-520.83,0.00055342,120]
[355817114,1741608665072,-556.54,0.00055342,14]
[355817115,1741608665083,-2660.17,0.00055342,120]
[355817116,1741608665094,-953.17,0.00055342,120]
[355817117,1741608665104,-571.36,0.00055342,120]
[355817118,1741608665114,-1609.58,0.00055342,120]
[355817119,1741608665125,-2620.89,0.00055342,120]
[355817120,1741608665136,-500.0,0.00055342,120]
[355817121,1741608665148,-1008.54,0.00055342,120]
[355817122,1741608665348,-634.3,0.00055342,120]
[355817123,1741608665360,-2201.3,0.00055342,120]
[355817124,1741608665373,-828.69,0.00055342,120]
[355817125,1741608665385,-4462.05,0.00055342,120]
[355817126,1741608665397,-500.0,0.00055342,120]
[355817127,1741608665409,-825.04,0.00055342,120]
[355817128,1741608665421,-500.0,0.00055342,120]
[355817129,1741608665434,-682.19,0.00055342,120]
[355817130,1741608665446,-1579.3,0.00055342,120]
[355817131,1741608665457,-783.28,0.00055342,120]
[355817132,1741608665467,-500.0,0.00055342,120]
[355817133,1741608665486,-1275.51,0.00055342,120]
[355817134,1741608665497,-648.98,0.00055342,120]
[355817135,1741608665508,-1028.4,0.00055342,120]
[355817136,1741608665519,-1934.53,0.00055342,120]
[355817137,1741608665529,-676.77,0.00055342,120]
[355817138,1741608665539,-500.0,0.00055342,120]
[355817139,1741608665549,-788.58,0.00055342,120]
[355817140,1741608665560,-3576.36,0.00055342,120]
[355817141,1741608665570,-551.56,0.00055342,120]
[355817142,1741608665580,-500.0,0.00055342,120]
[355817143,1741608665591,-2519.57,0.00055342,120]
[355817144,1741608665601,-500.0,0.00055342,120]
[355817145,1741608665613,-9999.0,0.00055342,2]
[355817146,1741608665624,-250.0,0.00055342,14]
[355817147,1741608665634,-600.0,0.00055342,15]
[355817148,1741608665645,-160.0,0.00055342,14]
[355817149,1741608665655,-151.0,0.00055616,120]
[355817150,1741608665668,-661.05,0.00055616,120]
[355817151,1741608665679,-342.274786,0.00055616,120]
[355817152,1741608665689,-1789.85,0.00055616,120]
[355817153,1741608665699,-500.0,0.00055616,120]
[355817154,1741608665709,-1401.64,0.00055616,120]
[355817155,1741608665718,-500.0,0.00055616,120]
[355817156,1741608665733,-775.39,0.00055616,120]
[355817157,1741608665744,-500.0,0.00055616,120]
[355817158,1741608665755,-500.0,0.00055616,2]
[355817159,1741608665765,-25655.27,0.00055616,7]
[355817160,1741608665776,-704.34,0.00055616,120]
[355817161,1741608665786,-1411.84,0.00055616,120]
[355817162,1741608665797,-519.72,0.00055616,120]
[355817163,1741608665808,-1148.55,0.00055616,120]
[355817164,1741608665819,-500.0,0.00055616,120]
[355817165,1741608665829,-967.69,0.00055616,60]
[355817166,1741608665840,-533.36,0.00055616,120]
[355817167,1741608665851,-502.19,0.00055616,120]
[355817168,1741608665862,-666.59,0.00055616,120]
[355817169,1741608665875,-571.19,0.00055616,120]
[355817170,1741608665885,-1286.18,0.00055616,120]
[355817171,1741608665895,-1736.39,0.00055616,120]
[355817172,1741608665907,-395.543539,0.00055616,120]
[355817173,1741608665917,-623.59,0.00055616,7]
[355817174,1741608665927,-520.83,0.00055616,120]
[355817175,1741608665938,-556.54,0.00055616,14]
[355817176,1741608665949,-2660.17,0.00055616,120]
[355817177,1741608665959,-953.17,0.00055616,120]
[355817178,1741608665969,-151.0,0.00055616,120]
[355817179,1741608665983,-571.36,0.00055616,120]
[355817180,1741608665993,-1609.58,0.00055616,120]
[355817181,1741608666003,-2620.89,0.00055616,120]
[355817182,1741608666015,-151.0,0.00055616,120]
[355817183,1741608666026,-500.0,0.00055616,120]
[355817184,1741608666036,-1008.54,0.00055616,120]
[355817185,1741608666046,-634.3,0.00055616,120]
[355817186,1741608666056,-2201.3,0.00055616,120]
[355817187,1741608666066,-828.69,0.00055616,120]
[355817188,1741608666077,-4462.05,0.00055616,120]
[355817189,1741608666087,-500.0,0.00055616,120]
[355817190,1741608666098,-825.04,0.00055616,120]
[355817191,1741608666108,-500.0,0.00055616,120]
[355817192,1741608666118,-682.19,0.00055616,120]
[355817193,1741608666129,-1579.3,0.00055616,120]
[355817194,1741608666141,-783.28,0.00055616,120]
[355817195,1741608666152,-500.0,0.00055616,120]
[355817196,1741608666162,-1275.51,0.00055616,120]
[355817197,1741608666173,-648.98,0.00055616,120]
[355817198,1741608666183,-1028.4,0.00055616,120]
[355817199,1741608666193,-1934.53,0.00055616,120]
[355817200,1741608666203,-676.77,0.00055616,120]
[355817201,1741608666213,-500.0,0.00055616,120]
[355817202,1741608666227,-788.58,0.00055616,120]
[355817203,1741608666237,-3576.36,0.00055616,120]
[355817204,1741608666248,-551.56,0.00055616,120]
[355817205,1741608666259,-500.0,0.00055616,120]
[355817206,1741608666270,-2519.57,0.00055616,120]
[355817207,1741608666280,-500.0,0.00055616,120]
[355817208,1741608666291,-10116.24222972,0.00055616,2]
[355817209,1741608666301,-398.0,0.00055656,2]
[355817210,1741608666313,-744.90394142,0.00055656,2]
[355817211,1741608666323,-833.06809866,0.00055743,120]
[355817212,1741608666333,-151.0,0.0005579,120]
[355817213,1741608666343,-151.0,0.0005579,110]
[355817214,1741608666353,-201.49244,0.0005579,110]
[355817215,1741608666363,-151.0,0.0005579,120]
[355817216,1741608666372,-151.0,0.0005579,30]
[355817217,1741608666383,-275.501808,0.0005579,120]
[355817218,1741608666393,-151.0,0.0005579,30]
[355817219,1741608666403,-151.0,0.0005579,120]
[355817220,1741608666413,-151.0,0.0005579,120]
[355817221,1741608666423,-222000.0,0.0005579,2]
[355817222,1741608666433,-508.21556026,0.000558,120]
[355817223,1741608666442,-525.0,0.0005589,120]
[355817224,1741608666452,-151.0,0.0005589,120]
[355817225,1741608666462,-151.0,0.0005589,90]
[355817226,1741608666476,-151.0,0.0005589,120]
[355817227,1741608666489,-367.478579,0.0005589,120]
[355817228,1741608666500,-367.478579,0.0005589,120]
[355817229,1741608666510,-151.0,0.0005589,120]
[355817230,1741608666521,-661.05,0.0005589,120]
[355817231,1741608666532,-1789.85,0.0005589,120]
[355817232,1741608666542,-500.0,0.0005589,120]
[355817233,1741608666552,-1401.64,0.0005589,120]
[355817234,1741608666562,-500.0,0.0005589,120]
[355817235,1741608666572,-775.39,0.0005589,120]
[355817236,1741608666583,-500.0,0.0005589,120]
[355817237,1741608666593,-500.0,0.0005589,2]
[355817238,1741608666603,-25655.27,0.0005589,7]
[355817239,1741608666613,-704.34,0.0005589,120]
[355817240,1741608666623,-1411.84,0.0005589,120]
[355817241,1741608666633,-519.72,0.0005589,120]
[355817242,1741608666644,-167.611121,0.0005589,120]
[355817243,1741608666655,-1148.55,0.0005589,120]
[355817244,1741608666666,-500.0,0.0005589,120]
[355817245,1741608666677,-967.69,0.0005589,60]
[355817246,1741608666688,-533.36,0.0005589,120]
[355817247,1741608666699,-502.19,0.0005589,120]
[355817248,1741608666712,-666.59,0.0005589,120]
[355817249,1741608666725,-571.19,0.0005589,120]
[355817250,1741608666740,-1286.18,0.0005589,120]
[355817251,1741608666750,-151.0,0.0005589,120]
[355817252,1741608666760,-1736.39,0.0005589,120]
[355817253,1741608666770,-520.83,0.0005589,120]
[355817254,1741608666781,-556.54,0.0005589,14]
[355817255,1741608666791,-2660.17,0.0005589,120]
[355817256,1741608666801,-953.17,0.0005589,120]
[355817257,1741608666811,-571.36,0.0005589,120]
[355817258,1741608666822,-1609.58,0.0005589,120]
[355817259,1741608666832,-2620.89,0.0005589,120]
[355817260,1741608666842,-500.0,0.0005589,120]
[355817261,1741608666853,-1008.54,0.0005589,120]
[355817262,1741608666863,-634.3,0.0005589,120]
[355817263,1741608666877,-2201.3,0.0005589,120]
[355817264,1741608666887,-828.69,0.0005589,120]
[355817265,1741608666898,-4462.05,0.0005589,120]
[355817266,1741608666908,-500.0,0.0005589,120]
[355817267,1741608666917,-825.04,0.0005589,120]
[355817268,1741608666927,-500.0,0.0005589,120]
[355817269,1741608666937,-682.19,0.0005589,120]
[355817270,1741608666947,-1579.3,0.0005589,120]
[355817271,1741608666957,-783.28,0.0005589,120]
[355817272,1741608666967,-500.0,0.0005589,120]
[355817273,1741608666981,-1275.51,0.0005589,120]
[355817274,1741608666992,-648.98,0.0005589,120]
[355817275,1741608667002,-1028.4,0.0005589,120]
[355817276,1741608667012,-1934.53,0.0005589,120]
[355817277,1741608667022,-676.77,0.0005589,120]
[355817278,1741608667032,-500.0,0.0005589,120]
[355817279,1741608667041,-788.58,0.0005589,120]
[355817280,1741608667051,-3576.36,0.0005589,120]
[355817281,1741608667062,-551.56,0.0005589,120]
[355817282,1741608667072,-516.98303805,0.0005589,120]
[355817283,1741608667082,-2519.57,0.0005589,120]
[355817284,1741608667092,-500.0,0.0005589,120]
[355817285,1741608667102,-350.0,0.0005589,14]
[355817286,1741608667111,-726.89385263,0.0005589,15]
[355817287,1741608667121,-220.40138221,0.0005589,14]
[355817288,1741608667131,-20000.0,0.00056,120]
[355817289,1741608667140,-3383.0,0.00056,120]
[355817290,1741608667150,-338.0,0.00056,120]
[355817291,1741608667159,-339.0,0.00056,120]
[355817292,1741608667169,-235.547413,0.00056,120]
[355817293,1741608667179,-500.0,0.00056164,120]
[355817294,1741608667189,-500.0,0.00056164,120]
[355817295,1741608667198,-151.0,0.00056164,120]
[355817296,1741608667209,-661.05,0.00056164,120]
[355817297,1741608667219,-1789.85,0.00056164,120]
[355817298,1741608667232,-385.61167951,0.00056164,120]
[355817299,1741608667241,-1401.64,0.00056164,120]
[355817300,1741608667251,-500.0,0.00056164,120]
[355817301,1741608667262,-775.39,0.00056164,120]
[355817302,1741608667272,-500.0,0.00056164,120]
[355817303,1741608667283,-447.37480385,0.00056164,2]
[355817304,1741608667293,-25655.27,0.00056164,7]
[355817305,1741608667303,-704.34,0.00056164,120]
[355817306,1741608667313,-1411.84,0.00056164,120]
[355817307,1741608667323,-519.72,0.00056164,120]
[355817308,1741608667332,-1148.55,0.00056164,120]
[355817309,1741608667341,-500.0,0.00056164,120]
[355817310,1741608667351,-967.69,0.00056164,60]
[355817311,1741608667361,-533.36,0.00056164,120]
[355817312,1741608667371,-502.19,0.00056164,120]
[355817313,1741608667380,-666.59,0.00056164,120]
[355817314,1741608667390,-571.19,0.00056164,120]
[355817315,1741608667400,-1286.18,0.00056164,120]
[355817316,1741608667410,-1736.39,0.00056164,120]
[355817317,1741608667419,-520.83,0.00056164,120]
[355817318,1741608667429,-556.54,0.00056164,14]
[355817319,1741608667439,-2660.17,0.00056164,120]
[355817320,1741608667448,-953.17,0.00056164,120]
[355817321,1741608667458,-571.36,0.00056164,120]
[355817322,1741608667468,-1609.58,0.00056164,120]
[355817323,1741608667481,-2620.89,0.00056164,120]
[355817324,1741608667491,-500.0,0.00056164,120]
[355817325,1741608667501,-1008.54,0.00056164,120]
[355817326,1741608667510,-634.3,0.00056164,120]
[355817327,1741608667520,-2201.3,0.00056164,120]
[355817328,1741608667529,-828.69,0.00056164,120]
[355817329,1741608667539,-4462.05,0.00056164,120]
[355817330,1741608667549,-500.0,0.00056164,120]
[355817331,1741608667559,-825.04,0.00056164,120]
[355817332,1741608667569,-500.0,0.00056164,120]
[355817333,1741608667580,-682.19,0.00056164,120]
[355817334,1741608667590,-1579.3,0.00056164,120]
[355817335,1741608667600,-783.28,0.00056164,120]
[355817336,1741608667615,-500.0,0.00056164,120]
[355817337,1741608667630,-1275.51,0.00056164,120]
[355817338,1741608667640,-648.98,0.00056164,120]
[355817339,1741608667650,-1028.4,0.00056164,120]
[355817340,1741608667660,-1934.53,0.00056164,120]
[355817341,1741608667670,-676.77,0.00056164,120]
[355817342,1741608667679,-500.0,0.00056164,120]
[355817343,1741608667689,-788.58,0.00056164,120]
[355817344,1741608667698,-3576.36,0.00056164,120]
[355817345,1741608667707,-551.56,0.00056164,120]
[355817346,1741608667717,-2519.57,0.00056164,120]
[355817347,1741608667729,-500.0,0.00056164,120]
[355817348,1741608667739,-833.06809866,0.00056181,120]
[355817349,1741608667748,-500.0,0.00056438,120]
[355817350,1741608667758,-500.0,0.00056438,120]
[355817351,1741608667769,-151.0,0.00056438,120]
[355817352,1741608667778,-661.05,0.00056438,120]
[355817353,1741608667788,-1789.85,0.00056438,120]
[355817354,1741608667798,-1401.64,0.00056438,120]
[355817355,1741608667808,-500.0,0.00056438,120]
[355817356,1741608667818,-775.39,0.00056438,120]
[355817357,1741608667827,-173.85177514,0.00056438,120]
[355817358,1741608667837,-25655.27,0.00056438,7]
[355817359,1741608667847,-704.34,0.00056438,120]
[355817360,1741608667860,-1411.84,0.00056438,120]
[355817361,1741608667870,-519.72,0.00056438,120]
[355817362,1741608667880,-1148.55,0.00056438,120]
[355817363,1741608667890,-500.0,0.00056438,120]
[355817364,1741608667900,-967.69,0.00056438,60]
[355817365,1741608667910,-533.36,0.00056438,120]
[355817366,1741608667920,-502.19,0.00056438,120]
[355817367,1741608667929,-666.59,0.00056438,120]
[355817368,1741608667940,-571.19,0.00056438,120]
[355817369,1741608667950,-1286.18,0.00056438,120]
[355817370,1741608667960,-1736.39,0.00056438,120]
[355817371,1741608667969,-520.83,0.00056438,120]
[355817372,1741608667982,-556.54,0.00056438,14]
[355817373,1741608667992,-2660.17,0.00056438,120]
[355817374,1741608668001,-953.17,0.00056438,120]
[355817375,1741608668011,-571.36,0.00056438,120]
[355817376,1741608668021,-1609.58,0.00056438,120]
[355817377,1741608668030,-2620.89,0.00056438,120]
[355817378,1741608668040,-500.0,0.00056438,120]
[355817379,1741608668049,-1008.54,0.00056438,120]
[355817380,1741608668059,-634.3,0.00056438,120]
[355817381,1741608668068,-2201.3,0.00056438,120]
[355817382,1741608668077,-828.69,0.00056438,120]
[355817383,1741608668087,-4462.05,0.00056438,120]
[355817384,1741608668097,-500.0,0.00056438,120]
[355817385,1741608668106,-825.04,0.00056438,120]
[355817386,1741608668117,-500.0,0.00056438,120]
[355817387,1741608668137,-682.19,0.00056438,120]
[355817388,1741608668158,-1579.3,0.00056438,120]
[355817389,1741608668169,-783.28,0.00056438,120]
[355817390,1741608668179,-500.0,0.00056438,120]
[355817391,1741608668189,-1275.51,0.00056438,120]
[355817392,1741608668199,-648.98,0.00056438,120]
[355817393,1741608668209,-1028.4,0.00056438,120]
[355817394,1741608668220,-1934.53,0.00056438,120]
[355817395,1741608668233,-676.77,0.00056438,120]
[355817396,1741608668244,-500.0,0.00056438,120]
[355817397,1741608668255,-788.58,0.00056438,120]
[355817398,1741608668265,-3576.36,0.00056438,120]
[355817399,1741608668276,-551.56,0.00056438,120]
[355817400,1741608668286,-2519.57,0.00056438,120]
[355817401,1741608668296,-500.0,0.00056438,120]
[355817402,1741608668306,-450.0,0.00056438,14]
[355817403,1741608668316,-150.0,0.000566,120]
[355817404,1741608668326,-153.88,0.000566,57]
[355817405,1741608668336,-153.88,0.000566,57]
[355817406,1741608668345,-153.88,0.000566,57]
[355817407,1741608668355,-153.88,0.000566,57]
[355817408,1741608668365,-153.88,0.000566,57]
[355817409,1741608668375,-153.88,0.000566,57]
[355817410,1741608668384,-162.08,0.000566,30]
[355817411,1741608668395,-833.06809867,0.000566,120]
[355817412,1741608668404,-1000.0,0.00056612,60]
[355817413,1741608668414,-500.0,0.00056712,120]
[355817414,1741608668572,-500.0,0.00056712,120]
[355817415,1741608668582,-661.05,0.00056712,120]
[355817416,1741608668591,-1789.85,0.00056712,120]
[355817417,1741608668600,-1401.64,0.00056712,120]
[355817418,1741608668610,-609.99076328,0.00056712,120]
[355817419,1741608668619,-775.39,0.00056712,120]
[355817420,1741608668629,-25655.27,0.00056712,7]
[355817421,1741608668638,-704.34,0.00056712,120]
[355817422,1741608668647,-1411.84,0.00056712,120]
[355817423,1741608668663,-519.72,0.00056712,120]
[355817424,1741608668672,-1148.55,0.00056712,120]
[355817425,1741608668682,-500.0,0.00056712,120]
[355817426,1741608668691,-967.69,0.00056712,60]
[355817427,1741608668701,-533.36,0.00056712,120]
[355817428,1741608668710,-502.19,0.00056712,120]
[355817429,1741608668720,-666.59,0.00056712,120]
[355817430,1741608668731,-571.19,0.00056712,120]
[355817431,1741608668741,-1286.18,0.00056712,120]
[355817432,1741608668751,-1736.39,0.00056712,120]
[355817433,1741608668761,-520.83,0.00056712,120]
[355817434,1741608668771,-556.54,0.00056712,14]
[355817435,1741608668781,-2660.17,0.00056712,120]
[355817436,1741608668790,-953.17,0.00056712,120]
[355817437,1741608668800,-151.0,0.00056712,120]
[355817438,1741608668810,-571.36,0.00056712,120]
[355817439,1741608668820,-1609.58,0.00056712,120]
[355817440,1741608668829,-2620.89,0.00056712,120]
[355817441,1741608668839,-500.0,0.00056712,120]
[355817442,1741608668850,-1008.54,0.00056712,120]
[355817443,1741608668859,-634.3,0.00056712,120]
[355817444,1741608668871,-2201.3,0.00056712,120]
[355817445,1741608668881,-828.69,0.00056712,120]
[355817446,1741608668891,-4462.05,0.00056712,120]
[355817447,1741608668901,-500.0,0.00056712,120]
[355817448,1741608668911,-825.04,0.00056712,120]
[355817449,1741608668921,-500.0,0.00056712,120]
[355817450,1741608668932,-682.19,0.00056712,120]
[355817451,1741608668942,-1579.3,0.00056712,120]
[355817452,1741608668954,-783.28,0.00056712,120]
[355817453,1741608668964,-500.0,0.00056712,120]
[355817454,1741608668977,-1275.51,0.00056712,120]
[355817455,1741608668986,-648.98,0.00056712,120]
[355817456,1741608668996,-1028.4,0.00056712,120]
[355817457,1741608669012,-1934.53,0.00056712,120]
[355817458,1741608669021,-676.77,0.00056712,120]
[355817459,1741608669031,-500.0,0.00056712,120]
[355817460,1741608669042,-788.58,0.00056712,120]
[355817461,1741608669051,-3576.36,0.00056712,120]
[355817462,1741608669061,-551.56,0.00056712,120]
[355817463,1741608669071,-2519.57,0.00056712,120]
[355817464,1741608669082,-545.85,0.00056712,120]
[355817465,1741608669092,-153.74,0.000568,30]
[355817466,1741608669102,-500.0,0.00056986,120]
[355817467,1741608669112,-500.0,0.00056986,120]
[355817468,1741608669121,-151.0,0.00056986,120]
[355817469,1741608669131,-661.05,0.00056986,120]
[355817470,1741608669141,-1789.85,0.00056986,120]
[355817471,1741608669151,-1401.64,0.00056986,120]
[355817472,1741608669162,-775.39,0.00056986,120]
[355817473,1741608669173,-25655.27,0.00056986,7]
[355817474,1741608669184,-704.34,0.00056986,120]
[355817475,1741608669194,-1411.84,0.00056986,120]
[355817476,1741608669205,-519.72,0.00056986,120]
[355817477,1741608669215,-1148.55,0.00056986,120]
[355817478,1741608669228,-500.0,0.00056986,120]
[355817479,1741608669239,-967.69,0.00056986,60]
[355817480,1741608669249,-533.36,0.00056986,120]
[355817481,1741608669258,-502.19,0.00056986,120]
[355817482,1741608669269,-666.59,0.00056986,120]
[355817483,1741608669279,-571.19,0.00056986,120]
[355817484,1741608669288,-1286.18,0.00056986,120]
[355817485,1741608669298,-1736.39,0.00056986,120]
[355817486,1741608669308,-520.83,0.00056986,120]
[355817487,1741608669318,-556.54,0.00056986,14]
[355817488,1741608669328,-2660.17,0.00056986,120]
[355817489,1741608669338,-953.17,0.00056986,120]
[355817490,1741608669348,-571.36,0.00056986,120]
[355817491,1741608669359,-1609.58,0.00056986,120]
[355817492,1741608669369,-2620.89,0.00056986,120]
[355817493,1741608669380,-151.0,0.00056986,120]
[355817494,1741608669389,-187.96836435,0.00056986,120]
[355817495,1741608669399,-1008.54,0.00056986,120]
[355817496,1741608669409,-634.3,0.00056986,120]
[355817497,1741608669419,-2201.3,0.00056986,120]
[355817498,1741608669428,-828.69,0.00056986,120]
[355817499,1741608669438,-4462.05,0.00056986,120]
[355817500,1741608669447,-641.11681429,0.00056986,120]
[355817501,1741608669457,-825.04,0.00056986,120]
[355817502,1741608669468,-600.26327979,0.00056986,120]
[355817503,1741608669480,-682.19,0.00056986,120]
[355817504,1741608669490,-1579.3,0.00056986,120]
[355817505,1741608669500,-783.28,0.00056986,120]
[355817506,1741608669510,-216.84949988,0.00056986,120]
[355817507,1741608669524,-1275.51,0.00056986,120]
[355817508,1741608669534,-648.98,0.00056986,120]
[355817509,1741608669544,-1028.4,0.00056986,120]
[355817510,1741608669554,-1934.53,0.00056986,120]
[355817511,1741608669563,-676.77,0.00056986,120]
[355817512,1741608669573,-587.12908802,0.00056986,120]
[355817513,1741608669582,-788.58,0.00056986,120]
[355817514,1741608669592,-3576.36,0.00056986,120]
[355817515,1741608669602,-551.56,0.00056986,120]
[355817516,1741608669612,-2519.57,0.00056986,120]
[355817517,1741608669622,-550.0,0.00056986,14]
[355817518,1741608669632,-1877.21997041,0.00057,120]
[355817519,1741608669642,-320.988061,0.00057174,2]
[355817520,1741608669652,-483.99,0.0005726,120]
[355817521,1741608669662,-500.0,0.0005726,120]
[355817522,1741608669671,-661.25359186,0.0005726,120]
[355817523,1741608669681,-1790.01407555,0.0005726,120]
[355817524,1741608669692,-1401.71384527,0.0005726,120]
[355817525,1741608669703,-775.42773751,0.0005726,120]
[355817526,1741608669712,-25655.4442,0.0005726,7]
[355817527,1741608669722,-704.52395855,0.0005726,120]
[355817528,1741608669735,-1412.0037748,0.0005726,120]
[355817529,1741608669745,-519.760335,0.0005726,120]
[355817530,1741608669755,-1148.74990717,0.0005726,120]
[355817531,1741608669766,-207.45478588,0.0005726,120]
[355817532,1741608669776,-967.79970193,0.0005726,60]
[355817533,1741608669787,-533.44496923,0.0005726,120]
[355817534,1741608669797,-502.37886289,0.0005726,120]
[355817535,1741608669807,-666.81781372,0.0005726,120]
[355817536,1741608669818,-571.33435261,0.0005726,120]
[355817537,1741608669829,-1286.39544593,0.0005726,120]
[355817538,1741608669839,-1736.59141325,0.0005726,120]
[355817539,1741608669850,-521.04430227,0.0005726,120]
[355817540,1741608669865,-556.59780042,0.0005726,14]
[355817541,1741608669875,-2660.39048304,0.0005726,120]
[355817542,1741608669884,-953.33876231,0.0005726,120]
[355817543,1741608669893,-571.36826471,0.0005726,120]
[355817544,1741608669904,-1609.68732429,0.0005726,120]
[355817545,1741608669914,-2620.92684477,0.0005726,120]
[355817546,1741608669925,-1008.56,0.0005726,120]
[355817547,1741608669935,-634.31606577,0.0005726,120]
[355817548,1741608669945,-2201.31775413,0.0005726,120]
[355817549,1741608669956,-828.77661106,0.0005726,120]
[355817550,1741608669966,-4462.21025164,0.0005726,120]
[355817551,1741608669979,-825.24137662,0.0005726,120]
[355817552,1741608669991,-682.25824833,0.0005726,120]
[355817553,1741608670001,-1579.5029389,0.0005726,120]
[355817554,1741608670011,-783.30845331,0.0005726,120]
[355817555,1741608670023,-1275.63748121,0.0005726,120]
[355817556,1741608670033,-649.06404848,0.0005726,120]
[355817557,1741608670044,-1028.58039043,0.0005726,120]
[355817558,1741608670055,-1934.58307258,0.0005726,120]
[355817559,1741608670064,-676.97760746,0.0005726,120]
[355817560,1741608670076,-788.61449168,0.0005726,120]
[355817561,1741608670086,-3576.36220322,0.0005726,120]
[355817562,1741608670096,-551.65555021,0.0005726,120]
[355817563,1741608670106,-2519.66259269,0.0005726,120]
[355817564,1741608670117,-157.59,0.000573,30]
[355817565,1741608670127,-206.02,0.000573,30]
[355817566,1741608670137,-4793.36,0.000573,30]
[355817567,1741608670148,-50041.4374,0.000574,30]
[355817568,1741608670158,-900.0,0.00057452,15]
[355817569,1741608670168,-500.0,0.00057534,120]
[355817570,1741608670178,-257.5813105,0.00057534,14]
[355817571,1741608670188,-772.773121,0.00057541,120]
[355817572,1741608670197,-243.48,0.000576,30]
[355817573,1741608670207,-500.0,0.00057808,120]
[355817574,1741608670218,-1733.36292725,0.00058,120]